Cogmind - Beta 10.2 @@@ ROGUE MODE // 2021.06.26 @ 18:46:51 Player: puncake Result: Destroyed by P-80 Master with Gamma Rifle Performance ------------- Evolutions (7) 3500 Regions Visited (12) 2400 Robots Destroyed (77) 385 Value Destroyed (3281) 3281 Prototype IDs (16) 320 Alien Tech Used (0) 0 Bonus (3864) 3864 TOTAL SCORE: 13750 Bonus ------- High Alert Combat Kills 247 Follower Combat Kills 615 Entered Garrisons 400 Used RIF Installer 500 Scanned by Researcher 500 Acquired SGEMP 2000 Friendly Fire -398 Cogmind --------- Core Integrity 0/1300 Matter 276/300 Energy 100/100 System Corruption 6% Temperature Cool (12) Movement Core (50) Location -3/Testing Parts ------- > --- POWER (2) -------- (None) > --- PROPULSION (4) --- (None) > --- UTILITY (12) ----- Weight Redist. System Enhanced Optical Array Relay Coupler [NC] (17) Relay Coupler [NC] (39) Relay Coupler [Grunt] (35) Relay Coupler [Hunter] (15) > --- WEAPON (3) ------- (None) > --- INVENTORY (4) ---- Remote Datajack SGEMP Prototype Peak State ------------ > --- POWER ------------ Fission Core Micro Fission Core > --- PROPULSION ------- Xenon Bombardment Thruster Xenon Bombardment Thruster Xenon Bombardment Thruster Q-thruster > --- UTILITY ---------- 2N-1CE's Frost Array Medium Storage Unit Inertial Stasis Machine Enhanced Optical Array System Shield Relay Coupler [NC] Relay Coupler [NC] Relay Coupler [NC] Relay Coupler [Swarmer] Relay Coupler [Grunt] Relay Coupler [Grunt] Relay Coupler [Hunter] > --- WEAPON ----------- Gamma Rifle Linear Accelerator Advanced Remote Datajack > --- INVENTORY -------- Improved Antigrav System Weight Redist. System Heavy Tesla Rifle HERF Cannon Mass Driver Remote Datajack Remote Datajack Advanced Remote Datajack [Rating: 103] Favorites ----------- Power Cooled Ion Engine Engine Cooled Ion Engine Power Core Micro Fission Core Reactor Light Particle Reactor Propulsion Armored Treads Treads Armored Treads Leg Aluminum Leg Flight Unit Xenon Bombardment Thruster Utility High-capacity Storage Unit Device Advanced Weight Redist. System Storage High-capacity Storage Unit Processor Improved Signal Interpreter Hackware Relay Coupler [Grunt] Protection Improved Light Armor Plating Weapon Heavy EM Shotgun Energy Gun Heavy EM Shotgun Energy Cannon Advanced Beam Cannon Ballistic Gun Light Assault Rifle Ballistic Cannon Mass Driver Launcher Mini Grenade Launcher Special Weapon Remote Datajack Slashing Weapon Katana Special Melee Weapon Improved Datajack Build | -11 -10 -9 -8 -8 -8 -7 -6 -5 -4 -4 -3 -3 ------- Run | Scr Mat Mat Mat Gar Mat Fac Fac Fac Fac Gar Res Tes Slots Evolved 14 | . . 2 2 . . 2 2 2 2 . 2 . Power 1 | . . . . . . . . 1 . . . . Propulsion 2 | . . . 1 . . . 1 . . . . . Utility 10 | . . 2 1 . . 2 1 . 2 . 2 . Weapon 1 | . . . . . . . . 1 . . . . Parts Attached 182 | 7 8 24 40 8 7 24 4 9 3 3 34 11 Power 19 | 1 1 3 1 1 1 2 1 4 . . 4 . Engine 9 | 1 1 3 1 1 . 2 . . . . . . Core 9 | . . . . . 1 . 1 4 . . 3 . Reactor 1 | . . . . . . . . . . . 1 . Propulsion 44 | 2 2 5 19 1 . 8 1 1 . . 5 . Treads 25 | 2 . 5 17 1 . . . . . . . . Leg 2 | . 2 . . . . . . . . . . . Wheel . | . . . . . . . . . . . . . Hover . | . . . . . . . . . . . . . Flight 17 | . . . 2 . . 8 1 1 . . 5 . Utility 56 | 1 2 5 13 5 1 5 1 2 3 3 11 4 Device 24 | . 1 1 5 2 . 2 1 2 1 . 5 4 Storage 7 | 1 1 1 1 . 1 . . . 1 . 1 . Processor 5 | . . 1 2 1 . . . . 1 . . . Hackware 14 | . . . 1 2 . 3 . . . 3 5 . Protection 6 | . . 2 4 . . . . . . . . . Artifact . | . . . . . . . . . . . . . Weapon 63 | 3 3 11 7 1 5 9 1 2 . . 14 7 Energy Gun 29 | 2 . 7 7 1 1 3 1 1 . . 3 3 Energy Cannon 6 | . . 3 . . 1 . . . . . 1 1 Ballistic Gun 8 | 1 3 . . . 3 . . . . . 1 . Ballistic Cannon 5 | . . . . . . . . 1 . . 3 1 Launcher 1 | . . . . . . 1 . . . . . . Special Weapon 12 | . . . . . . 4 . . . . 6 2 Impact Weapon . | . . . . . . . . . . . . . Slashing Weapon 1 | . . 1 . . . . . . . . . . Piercing Weapon . | . . . . . . . . . . . . . Special Melee Weapon 1 | . . . . . . 1 . . . . . . Unidentified Prototypes 15 | . . 2 3 . 2 2 . . . . 4 2 Parts Lost 43 | . 6 6 2 1 2 2 . 2 3 . 6 13 Power 6 | . 1 1 . . 1 . . . . . 1 2 Propulsion 13 | . 2 . 1 . . 1 . 2 1 . 2 4 Utility 9 | . . 1 1 . . . . . . . 2 5 Weapon 15 | . 3 4 . 1 1 1 . . 2 . 1 2 Highest Loss Streak 11 | . 6 2 2 1 1 2 . 1 3 . 2 11 Average Slot Usage (%) 96 | . 88 94 99 99 99 98 89 96 88 78 87 79 Engine 7 | . 13 11 8 9 2 6 2 . . . . . Core 1 | . . . . . 6 . 3 10 10 10 9 4 Treads 17 | . 7 15 26 27 27 . . . . . . . Leg 1 | . 19 6 . . . . . . . . . . Flight 4 | . . . . . . 21 21 22 13 10 13 14 Device 13 | . 5 20 12 15 9 7 7 11 14 15 12 11 Storage 7 | . 14 11 9 9 9 . . . 4 5 4 2 Processor 7 | . . 7 9 9 9 7 6 5 5 5 4 4 Hackware 13 | . . . 5 11 18 37 33 29 26 26 32 34 Protection 2 | . . 1 8 . . . . . . . . . Energy Gun 12 | . 4 14 16 18 4 4 6 8 8 5 2 1 Energy Cannon 1 | . . 3 1 . 6 . . . . . . . Ballistic Gun 1 | . 22 . . . 6 2 . . . . 1 . Special Weapon 1 | . . . . . . 4 6 5 3 . 3 4 Naked Turns . | . . . . . . . . . . . . . Heaviest Build 58 | 10 13 50 58 50 48 47 22 29 31 23 38 35 Greatest Support 69 | 40 40 46 69 69 69 69 22 39 40 35 43 41 Greatest Overweight (x) 1 | . . 1 1 . . 1 . 1 . . 1 . Average Overweight (x) . | . . . . . . . . . . . . . Largest Inventory Capacity 16 | 6 10 12 16 12 12 12 4 4 8 8 8 8 Average Capacity 9 | 5 7 10 12 12 12 4 4 4 7 8 8 6 Most Carried 12 | 5 8 12 12 12 12 12 4 4 5 8 8 8 Average Carried 9 | 3 5 8 11 11 11 4 3 3 4 7 7 5 Final Capacity 12 | 6 8 12 12 12 12 4 4 4 8 8 8 4 Final Carried 12 | 4 8 11 12 12 12 4 4 4 4 8 8 3 Class Distribution -------------------- 43% | Mutant 21% | Bothacker-Mutant 15% | Scavenger-Mutant 11% | Bothacker-Sprinter 5% | Commander-Mutant Dominant Class ---------------- Mutant | -10/Materials Scavenger-Mutant | -9/Materials Mutant | -8/Materials Mutant | -8/Garrison Bothacker-Mutant | -8/Materials Bothacker-Sprinter | -7/Factory Bothacker-Mutant | -6/Factory Bothacker-Sprinter | -5/Factory Bothacker-Mutant | -4/Factory Mutant | -4/Garrison Bothacker-Mutant | -3/Research Bothacker-Mutant | -3/Testing Resources | -11 -10 -9 -8 -8 -8 -7 -6 -5 -4 -4 -3 -3 ----------- Run | Scr Mat Mat Mat Gar Mat Fac Fac Fac Fac Gar Res Tes Matter Collected 2448 | 260 92 212 496 181 159 174 138 184 . . 404 148 Remotely . | . . . . . . . . . . . . . Salvage Created 4047 | . 178 548 1213 1079 357 108 75 90 . . 399 . Parts 222 | . 12 29 72 53 19 7 5 2 . . 23 . Haulers Intercepted 11 | . 2 3 5 . . 1 . . . . . . Recyclers Shooed 1 | . . . . . 1 . . . . . . . Parts Field Recycled . | . . . . . . . . . . . . . Retrieved Matter . | . . . . . . . . . . . . . Parts Self-Destructed . | . . . . . . . . . . . . . Prevented . | . . . . . . . . . . . . . Kills | -11 -10 -9 -8 -8 -8 -7 -6 -5 -4 -4 -3 -3 ------- Run | Scr Mat Mat Mat Gar Mat Fac Fac Fac Fac Gar Res Tes Combat Hostiles Destroyed 59 | . 4 7 21 10 8 1 1 1 . . 6 . Guns 48 | . 4 6 17 10 6 1 1 1 . . 2 . Cannons 7 | . . 1 3 . 2 . . . . . 1 . AOE 2 | . . . 1 . . . . . . . 1 . Classes Destroyed 14 | . 2 5 3 3 . . . . . . 1 . Worker 1 | . . 1 . . . . . . . . . . Builder 1 | . . . 1 . . . . . . . . . Hauler 11 | . 2 3 5 . . 1 . . . . . . Recycler 1 | . . . 1 . . . . . . . . . Watcher 2 | . . . 1 1 . . . . . . . . Swarmer 17 | . 4 . 9 . 2 . . . . . 2 . Saboteur 2 | . . . . 2 . . . . . . . . Grunt 17 | . . 4 5 6 2 . . . . . . . Brawler 2 | . . 1 1 . . . . . . . . . Duelist 1 | . . 1 . . . . . . . . . . Sentry 15 | . . 1 6 1 2 1 1 1 . . 2 . Specialist 2 | . . . . 2 . . . . . . . . Hunter 3 | . . . . 1 2 . . . . . . . Programmer 2 | . . . . . . . . . . . 2 . Best Kill Streak 3 | . 2 3 3 2 3 1 1 1 . . 2 . Combat Bots Only 3 | . 2 2 3 2 3 1 1 1 . . 2 . Max Kills in Single Turn 2 | . 1 2 2 2 1 1 1 1 . . 1 . Gunslinging . | . . . . . . . . . . . . . Exploded 1 | . . . 1 . . . . . . . 1 . Melee . | . . . . . . . . . . . . . Uniques/NPCs Destroyed . | . . . . . . . . . . . . . Combat | -11 -10 -9 -8 -8 -8 -7 -6 -5 -4 -4 -3 -3 -------- Run | Scr Mat Mat Mat Gar Mat Fac Fac Fac Fac Gar Res Tes Damage Taken 7027 | . 682 647 775 767 472 403 50 266 322 109 895 1639 Core 1952 | . 86 91 78 66 84 50 39 23 97 38 317 983 Absorbed by Shields . | . . . . . . . . . . . . . Core Remaining (%) 84 | 100 65 77 . . 58 92 95 97 . 88 . . Volleys Fired 288 | . 25 31 66 55 21 18 6 18 . 1 35 12 Largest 3 | . 2 2 2 2 2 1 1 2 . 1 3 1 Hottest 162 | . 90 113 118 111 117 55 80 145 . 80 162 88 Shots Fired 449 | . 39 52 131 79 42 18 6 22 . 1 47 12 Gun 350 | . 39 42 105 79 33 5 4 8 . 1 30 4 Cannon 51 | . . 10 26 . 9 . . . . . 5 1 Launcher . | . . . . . . . . . . . . . Special 48 | . . . . . . 13 2 14 . . 12 7 Kinetic 60 | . 32 . . . 13 2 . . . . 13 . Thermal 181 | . 7 30 66 29 29 . 4 4 . 1 11 . Explosive . | . . . . . . . . . . . . . Electromagnetic 160 | . . 22 65 50 . 3 . 4 . . 11 5 Robot Hit Streak 27 | . 4 16 10 27 10 4 10 11 . . 10 5 Robot Miss Streak 5 | . 3 3 5 3 3 3 . 2 . . 2 2 Penetration Max 1 | . . . . . 1 . . . . . . . Secondary Targets 2 | . . . 1 1 . . . . . . . . Max Gunslinging Chain 1 | . . . 1 1 . . . . . . . . Shots Hit Robots 318 | . 19 44 88 58 30 15 6 15 . . 36 7 Core Hits 153 | . 10 22 40 44 17 3 2 2 . . 8 5 Critical Hits 12 | . 1 2 3 3 . . . . . . 3 . Critical Kills 6 | . 1 1 2 1 . . . . . . 1 . Critical Parts Destroyed 6 | . . 1 1 2 . . . . . . 2 . Melee Attacks 2 | . . 1 . . . 1 . . . . . . Impact . | . . . . . . . . . . . . . Slashing 1 | . . 1 . . . . . . . . . . Piercing . | . . . . . . . . . . . . . Sneak Attacks . | . . . . . . . . . . . . . Combat Hostiles . | . . . . . . . . . . . . . Follow-up Attacks . | . . . . . . . . . . . . . Damage Inflicted 5802 | . 206 714 1721 1578 649 75 115 92 . . 617 35 Guns 4331 | . 206 494 1127 1266 449 75 115 92 . . 495 12 Cannons 852 | . . 184 346 . 200 . . . . . 122 . Explosions 560 | . . . 248 312 . . . . . . . . Melee 36 | . . 36 . . . . . . . . . . Ramming 23 | . . . . . . . . . . . . 23 Kinetic 653 | . 161 . . . 201 32 . . . . 259 . Thermal 2644 | . 45 391 818 592 448 . 115 48 . . 187 . Explosive 56 | . . . 56 . . . . . . . . . Electromagnetic 2390 | . . 287 847 986 . 43 . 44 . . 171 12 Impact . | . . . . . . . . . . . . . Slashing 36 | . . 36 . . . . . . . . . . Piercing . | . . . . . . . . . . . . . Highest Corruption 6 | . . 4 3 3 3 . . . . . 1 6 Average Corruption 2 | . . 4 3 3 3 . . . . . 1 1 Corruption Purged . | . . . . . . . . . . . . . Effects 86 | . . 5 39 29 11 . . . . . 1 1 Message Errors 22 | . . 1 9 6 5 . . . . . 1 . Matter Fused 25 | . . 1 10 11 3 . . . . . . . Heat Flow Errors 7 | . . 2 4 1 . . . . . . . . Energy Discharges 9 | . . 1 3 5 . . . . . . . . Data Loss (minor) 16 | . . . 10 3 2 . . . . . . 1 Targeting Errors 6 | . . . 3 2 1 . . . . . . . Weapon Failures 1 | . . . . 1 . . . . . . . . Overload Shots . | . . . . . . . . . . . . . Overflow Damage 30 | . . . 27 3 . . . . . . . . Projectiles 1 | . . . 1 . . . . . . . . . Explosions 29 | . . . 26 3 . . . . . . . . Melee . | . . . . . . . . . . . . . Knockbacks . | . . . . . . . . . . . . . Impact . | . . . . . . . . . . . . . Kinetic . | . . . . . . . . . . . . . Secondary . | . . . . . . . . . . . . . Self-Inflicted Damage 230 | . . . 94 126 . . . . . . . 10 Shots 5 | . . . 2 3 . . . . . . . . Rammed 6 | . . . . . . . . . . . . 6 Targets Rammed 6 | . . . . . . . . . . . . 6 Kicked . | . . . . . . . . . . . . . Crushed . | . . . . . . . . . . . . . Highest Temperature 525 | . 62 525 318 197 315 37 30 281 . 36 231 46 Average Temperature 85 | . 33 99 101 54 107 13 16 84 . 23 85 26 Received Heat Transfer 936 | . . 156 198 279 36 78 18 18 . 9 99 45 Effects 10 | . . 10 . . . . . . . . . . Shutdowns 1 | . . 1 . . . . . . . . . . Energy Bleed 1 | . . 1 . . . . . . . . . . Interference 3 | . . 3 . . . . . . . . . . Damage (minor) 1 | . . 1 . . . . . . . . . . Damage (major) 4 | . . 4 . . . . . . . . . . Siege Activations . | . . . . . . . . . . . . . Robots Corrupted 6 | . . . . 5 . . . . . . 1 . Combat Hostiles 1 | . . . . . . . . . . . 1 . Parts Fried 8 | . . . 3 5 . . . . . . . . Impact Corruptions . | . . . . . . . . . . . . . Robots Melted 1 | . . . . . . . . . . . 1 . Combat Hostiles 1 | . . . . . . . . . . . 1 . Parts Melted 6 | . . 2 . 1 . . . 2 . . 1 . Heat Transferred 4535 | . 124 901 1297 918 777 . 148 74 . . 296 . Parts Sabotaged . | . . . . . . . . . . . . . Parts Stolen . | . . . . . . . . . . . . . Parts Stripped . | . . . . . . . . . . . . . Power Chain Reactions 6 | . . . 3 3 . . . . . . . . Missiles Intercepted . | . . . . . . . . . . . . . Alert | -11 -10 -9 -8 -8 -8 -7 -6 -5 -4 -4 -3 -3 ------- Run | Scr Mat Mat Mat Gar Mat Fac Fac Fac Fac Gar Res Tes Peak Influence 1043 | . 77 137 349 1043 683 347 304 370 196 251 356 295 Initial 508 | . . . 40 226 508 262 165 148 181 126 141 115 Average 291 | . 31 48 158 658 558 277 220 243 183 180 234 222 Maximum Alert Level 3 | . . . 1 3 2 1 1 1 . 1 1 1 Low Security (%) 43 | 100 100 100 57 . . 12 56 23 100 69 27 36 Level 1 33 | . . . 42 23 . 87 44 76 . 30 72 63 Level 2 12 | . . . . 25 100 . . . . . . . Level 3 10 | . . . . 50 . . . . . . . . Level 4 . | . . . . . . . . . . . . . Level 5 . | . . . . . . . . . . . . . High Security . | . . . . . . . . . . . . . Max Security . | . . . . . . . . . . . . . Squads Dispatched 15 | . . 1 2 . 1 1 . . 1 . 6 3 Investigation 2 | . . . 1 . . 1 . . . . . . Extermination 2 | . . . . . . . . . . . 2 . Reinforcement 8 | . . 1 1 . 1 . . . 1 . 1 3 Assault . | . . . . . . . . . . . . . Garrison 3 | . . . . . . . . . . . 3 . Intercept . | . . . . . . . . . . . . . Construction Impeded . | . . . . . . . . . . . . . Haulers Reinforced . | . . . . . . . . . . . . . Stealth | -11 -10 -9 -8 -8 -8 -7 -6 -5 -4 -4 -3 -3 --------- Run | Scr Mat Mat Mat Gar Mat Fac Fac Fac Fac Gar Res Tes Distress Signals 9 | . 1 . 4 1 1 . . . 1 . . 1 Communications Jammed . | . . . . . . . . . . . . . Distress Signals . | . . . . . . . . . . . . . Times Spotted 190 | . 11 17 45 21 10 12 4 17 9 9 15 20 Peak Tracking Total 10 | . 7 4 6 3 3 7 2 4 6 8 5 10 Tactical Retreats 22 | . . 4 6 . . 3 . 3 . 1 3 2 Traps | -11 -10 -9 -8 -8 -8 -7 -6 -5 -4 -4 -3 -3 ------- Run | Scr Mat Mat Mat Gar Mat Fac Fac Fac Fac Gar Res Tes Traps Triggered 5 | . . . 3 . . 1 . . . 1 . . Indirectly . | . . . . . . . . . . . . . Trap Hack Attempts . | . . . . . . . . . . . . . Triggered . | . . . . . . . . . . . . . Disarmed . | . . . . . . . . . . . . . Reprogrammed . | . . . . . . . . . . . . . Reused . | . . . . . . . . . . . . . Traps Extracted . | . . . . . . . . . . . . . Installed . | . . . . . . . . . . . . . Triggered 1 | . . . 1 . . . . . . . . . Machines | -11 -10 -9 -8 -8 -8 -7 -6 -5 -4 -4 -3 -3 ---------- Run | Scr Mat Mat Mat Gar Mat Fac Fac Fac Fac Gar Res Tes Machines Disabled 12 | . . 1 3 3 . . . . . 1 1 3 Max in Single Turn 1 | . . 1 1 1 . . . . . 1 1 1 Garrison Relay 4 | . . . . 3 . . . . . 1 . . Machines Sabotaged . | . . . . . . . . . . . . . Garrisons Compromised . | . . . . . . . . . . . . . Overloaded Fab Kills . | . . . . . . . . . . . . . Fab Network Shutdowns . | . . . . . . . . . . . . . Hacking | -11 -10 -9 -8 -8 -8 -7 -6 -5 -4 -4 -3 -3 --------- Run | Scr Mat Mat Mat Gar Mat Fac Fac Fac Fac Gar Res Tes Machines Accessed 28 | . 4 2 10 . 1 4 . 3 2 . . 2 Terminals 25 | . 4 2 8 . 1 4 . 3 1 . . 2 Fabricators . | . . . . . . . . . . . . . Repair Stations . | . . . . . . . . . . . . . Recycling Units 1 | . . . 1 . . . . . . . . . Scanalyzers . | . . . . . . . . . . . . . Garrison Access 2 | . . . 1 . . . . . 1 . . . Total Hacks 38 | . 5 2 15 . 2 5 . 4 3 . . 2 Successful 15 | . 2 . 9 . 1 1 . 1 1 . . . Failed 23 | . 3 2 6 . 1 4 . 3 2 . . 2 Catastrophic 7 | . . 2 2 . . 1 . 2 . . . . Database Lockouts . | . . . . . . . . . . . . . Manual 15 | . 3 1 4 . 2 3 . 2 . . . . Terminals 35 | . 5 2 13 . 2 5 . 4 2 . . 2 Fabricators . | . . . . . . . . . . . . . Repair Stations . | . . . . . . . . . . . . . Recycling Units 1 | . . . 1 . . . . . . . . . Scanalyzers . | . . . . . . . . . . . . . Garrison Access 2 | . . . 1 . . . . . 1 . . . Terminal Hacks 12 | . 2 . 7 . 1 1 . 1 . . . . Branch Access Points 3 | . 1 . . . 1 . . 1 . . . . Unreport Threat 2 | . 1 . 1 . . . . . . . . . Zone Layout 7 | . . . 6 . . 1 . . . . . . Fabricator Hacks . | . . . . . . . . . . . . . Repair Station Hacks . | . . . . . . . . . . . . . Recycling Unit Hacks 1 | . . . 1 . . . . . . . . . Retrieve Components 1 | . . . 1 . . . . . . . . . Scanalyzer . | . . . . . . . . . . . . . Garrison Access Hacks 2 | . . . 1 . . . . . 1 . . . Unlock Access 2 | . . . 1 . . . . . 1 . . . Unauthorized Hacks . | . . . . . . . . . . . . . Terminals . | . . . . . . . . . . . . . Fabricators . | . . . . . . . . . . . . . Repair Stations . | . . . . . . . . . . . . . Recycling Units . | . . . . . . . . . . . . . Scanalyzers . | . . . . . . . . . . . . . Garrison Access . | . . . . . . . . . . . . . Data Cores Recovered . | . . . . . . . . . . . . . Used . | . . . . . . . . . . . . . Hacking Detections 16 | . 1 2 4 . . 3 . 2 2 . . 2 Full Trace Events . | . . . . . . . . . . . . . Feedback Events . | . . . . . . . . . . . . . Feedback Blocked . | . . . . . . . . . . . . . Robot Schematics Acquired . | . . . . . . . . . . . . . Robots Built . | . . . . . . . . . . . . . Matter . | . . . . . . . . . . . . . Time . | . . . . . . . . . . . . . Total Robot Build Rating . | . . . . . . . . . . . . . Part Schematics Acquired . | . . . . . . . . . . . . . Parts Built . | . . . . . . . . . . . . . Matter . | . . . . . . . . . . . . . Time . | . . . . . . . . . . . . . Total Part Build Rating . | . . . . . . . . . . . . . Parts Repaired . | . . . . . . . . . . . . . Time . | . . . . . . . . . . . . . Parts Recycled . | . . . . . . . . . . . . . Recycled Matter . | . . . . . . . . . . . . . Retrieved Matter . | . . . . . . . . . . . . . Retrieved Components 10 | . . . 10 . . . . . . . . . Parts Scanalyzed . | . . . . . . . . . . . . . Part Schematics Acquired . | . . . . . . . . . . . . . Parts Damaged . | . . . . . . . . . . . . . Bothacking | -11 -10 -9 -8 -8 -8 -7 -6 -5 -4 -4 -3 -3 ------------ Run | Scr Mat Mat Mat Gar Mat Fac Fac Fac Fac Gar Res Tes Used RIF Installer 1 | . . . . 1 . . . . . . . . Robots Hacked 26 | . . . . . . 7 2 7 . . 7 3 Non-combat 7 | . . . . . . 4 . 1 . . 1 1 Combat 19 | . . . . . . 3 2 6 . . 6 2 Robot Hacks Applied 33 | . . . . . . 9 2 8 . . 10 4 no_distress 2 | . . . . . . 1 . . . . 1 . ignore_repairs 1 | . . . . . . 1 . . . . . . drop_inventory 4 | . . . . . . 2 . 1 . . . 1 find_recycling 1 | . . . . . . . . . . . 1 . ignore_parts 1 | . . . . . . . . . . . 1 . mark_security 1 | . . . . . . 1 . . . . . . tweak_propulsion 1 | . . . . . . . . 1 . . . . scatter_targeting 1 | . . . . . . . . . . . 1 . link_complan 1 | . . . . . . . 1 . . . . . spike_heat 8 | . . . . . . . . 4 . . 3 1 overload_power 7 | . . . . . . 4 . 1 . . 1 1 amplify_resonance 1 | . . . . . . . . . . . . 1 disable_weapons 1 | . . . . . . . . . . . 1 . reboot_system 1 | . . . . . . . . . . . 1 . overwrite_iff 1 | . . . . . . . . 1 . . . . formatsys_high 1 | . . . . . . . 1 . . . . . Relay Couplers Released 19 | . . . . 14 . . . . . 5 . . Machine Destruction 19 | . . . . 14 . . . . . 5 . . Attached 12 | . . . . 2 . 3 . . . 3 4 . Robots Rewired 13 | . . . 1 12 . . . . . . . . Allies Hacked . | . . . . . . . . . . . . . Hacks Repelled . | . . . . . . . . . . . . . Allies | -11 -10 -9 -8 -8 -8 -7 -6 -5 -4 -4 -3 -3 -------- Run | Scr Mat Mat Mat Gar Mat Fac Fac Fac Fac Gar Res Tes Total Allies 15 | . . . 1 12 . . 1 1 . . . . Largest Group 5 | . . . 1 5 . . 1 1 . . . . Highest-Rated Group 156 | . . . 16 156 . . 32 32 . . . . Highest-Rated Ally 38 | . . . 16 38 . . 32 32 . . . . Total Orders . | . . . . . . . . . . . . . Ally Attacks 89 | . . . 12 67 . . 3 7 . . . . Total Damage 1844 | . . . 109 1401 . . 146 188 . . . . Kills 22 | . . . 2 16 . . 1 3 . . . . Allies Corrupted . | . . . . . . . . . . . . . Allies Melted . | . . . . . . . . . . . . . Intel | -11 -10 -9 -8 -8 -8 -7 -6 -5 -4 -4 -3 -3 ------- Run | Scr Mat Mat Mat Gar Mat Fac Fac Fac Fac Gar Res Tes Robot Analysis Total . | . . . . . . . . . . . . . Derelict Logs Recovered . | . . . . . . . . . . . . . Drone Launches . | . . . . . . . . . . . . . Drone Recoveries . | . . . . . . . . . . . . . Exploration | -11 -10 -9 -8 -8 -8 -7 -6 -5 -4 -4 -3 -3 ------------- Run | Scr Mat Mat Mat Gar Mat Fac Fac Fac Fac Gar Res Tes Turns Passed 8687 | 111 414 1165 2373 1886 594 606 150 384 144 110 503 247 Spaces Moved 7374 | 64 264 458 1093 932 293 1185 309 987 394 245 687 463 Core 91 | 9 . . . . . . . . . . . 82 Treads 2705 | 55 42 286 1093 932 293 4 . . . . . . Legs 394 | . 222 172 . . . . . . . . . . Wheels . | . . . . . . . . . . . . . Hover . | . . . . . . . . . . . . . Flight 4184 | . . . . . . 1181 309 987 394 245 687 381 Fastest Speed 29 | 50 120 120 160 170 170 29 34 31 34 37 31 31 Average Speed 87 | 144 126 148 169 170 170 31 34 31 34 37 34 37 Slowest Speed 190 | 160 160 180 190 170 170 170 34 114 37 37 120 50 Overloaded Moves . | . . . . . . . . . . . . . Propulsion Burnouts . | . . . . . . . . . . . . . Robots Hopped 21 | . . . . . . . . 7 3 3 2 6 Cave-ins Triggered . | . . . . . . . . . . . . . Exploration Rate (%) 37 | 5 52 31 83 82 31 35 8 17 8 42 18 70 Regions Visited 12 Branch Regions 1 Pre-discovered Areas . | . . . . . . . . . . . . . Known Exits Taken 3 | . . 1 1 . . . . . 1 . . . Unknown Exits Taken 7 | 1 1 . . . 1 1 1 1 . . 1 . Scrap Searched . | . . . . . . . . . . . . . Spaces Dug . | . . . . . . . . . . . . . Terrain Destroyed 89 | . . . 63 22 1 . . . . . 3 . Melee . | . . . . . . . . . . . . . Projectile 4 | . . . . . 1 . . . . . 3 . AOE 85 | . . . 63 22 . . . . . . . . Terrain Rammed . | . . . . . . . . . . . . . Walls Destroyed . | . . . . . . . . . . . . . Machines Disabled . | . . . . . . . . . . . . . Actions | -11 -10 -9 -8 -8 -8 -7 -6 -5 -4 -4 -3 -3 --------- Run | Scr Mat Mat Mat Gar Mat Fac Fac Fac Fac Gar Res Tes Total 9170 | 81 313 889 1491 1157 348 1411 348 1034 395 258 913 532 Wait 1020 | 4 . 347 239 61 19 156 24 15 . 2 130 23 Move 7324 | 63 263 457 1093 931 292 1184 308 972 388 240 682 451 Hop 18 | . . . . . . . . 7 2 1 2 6 Pick Up 89 | 7 13 16 17 8 1 5 2 4 2 4 6 4 Fast Attach 77 | 3 1 4 19 4 5 11 3 5 1 . 18 3 Attach 57 | 3 7 10 3 4 1 8 . 3 1 . 10 7 Detach 22 | . 1 2 . 2 1 1 . 2 . . 8 5 Swap 52 | 1 . 10 18 3 2 5 1 1 1 3 6 1 Drop 124 | . 3 11 34 9 6 22 4 7 . . 16 12 Fire 288 | . 25 31 66 55 21 18 6 18 . 1 35 12 Melee 2 | . . 1 . . . 1 . . . . . . Ram 6 | . . . . . . . . . . . . 6 Kick . | . . . . . . . . . . . . . Crush . | . . . . . . . . . . . . . Escape Stasis 9 | . . . . . . . . . . 7 . 2 Rewire 82 | . . . 2 80 . . . . . . . . Trap . | . . . . . . . . . . . . . Miscellaneous . | . . . . . . . . . . . . . Route ------- -11/Scrapyard -10/Materials (discovered 3 exits: *Mat / *Min x2) -9/Materials -8/Materials (discovered 3 exits: *Fac x2 / Gar) -8/Garrison (discovered 3 exits: *Mat x3) -8/Materials -7/Factory (discovered 2 exits: [*Fac] / [*Low]) -6/Factory -5/Factory (discovered 4 exits: *Fac x2 / Upp x2) -4/Factory -4/Garrison -3/Research -3/Testing History --------- Turn | Location | Event 3 | -11/Scrapyard | Discovered new exit (range 16) 112 | -11/Scrapyard | Entered Materials 144 | -10/Materials | Identified exit to Mines 252 | -10/Materials | Lost 6 parts (1p2n3w) 320 | -10/Materials | Build established: Mutant 510 | -10/Materials | Discovered new exit (range 8) 526 | -10/Materials | Entered another Materials area 526 | -9/Materials | Evolved 2 slots: Utility x2 700 | -9/Materials | Discovered new exit (range 3) 1031 | -9/Materials | Build established: Scavenger-Mutant 1689 | -9/Materials | Identified exit to Materials 1691 | -9/Materials | Entered another Materials area 1691 | -8/Materials | Evolved 2 slots: Propulsion x1, Utility x1 2387 | -8/Materials | Build established: Mutant 2518 | -8/Materials | Discovered new exit (range 8) 3526 | -8/Materials | Discovered new exit (range 15) 4063 | -8/Materials | Identified exit to Garrison 4064 | -8/Materials | Entered Garrison 4064 | -8/Garrison | Accompanied by 1 ally 4510 | -8/Garrison | Triggered checkpoint 4544 | -8/Garrison | Triggered checkpoint 4964 | -8/Garrison | Triggered checkpoint 5008 | -8/Garrison | Triggered checkpoint 5015 | -8/Garrison | Discovered new exit (range 10) 5016 | -8/Garrison | Triggered checkpoint 5060 | -8/Garrison | Garrison Relay disabled 5214 | -8/Garrison | Identified exit to Materials 5365 | -8/Garrison | Discovered exit to Materials (range 10) 5396 | -8/Garrison | Installed Relay Interface Framework 5438 | -8/Garrison | Triggered checkpoint 5454 | -8/Garrison | Garrison Relay disabled 5683 | -8/Garrison | Discovered exit to Materials (range 14) 5764 | -8/Garrison | Build established: Bothacker-Mutant 5770 | -8/Garrison | Triggered checkpoint 5826 | -8/Garrison | Garrison Relay disabled 5950 | -8/Garrison | Entered Materials 6477 | -8/Materials | Discovered new exit (range 12) 6544 | -8/Materials | Entered Factory 6544 | -7/Factory | Evolved 2 slots: Utility x2 6900 | -7/Factory | Build established: Bothacker-Sprinter 6939 | -7/Factory | Discovered new exit (range 6) 7132 | -7/Factory | Discovered new exit (range 18) 7150 | -7/Factory | Entered another Factory area 7150 | -6/Factory | Evolved 2 slots: Propulsion x1, Utility x1 7251 | -6/Factory | Discovered new exit (range 4) 7300 | -6/Factory | Entered another Factory area 7300 | -5/Factory | Accompanied by 1 ally 7300 | -5/Factory | Evolved 2 slots: Power x1, Weapon x1 7420 | -5/Factory | Discovered new exit (range 11) 7532 | -5/Factory | Discovered new exit (range 13) 7589 | -5/Factory | Identified exit to Upper Caves 7684 | -5/Factory | Entered another Factory area 7684 | -4/Factory | Evolved 2 slots: Utility x2 7812 | -4/Factory | Lost 3 parts (1n2w) 7827 | -4/Factory | Identified exit to Garrison 7828 | -4/Factory | Entered Garrison 7850 | -4/Garrison | Spotted B-86 Titan 7871 | -4/Garrison | Garrison Relay disabled 7902 | -4/Garrison | Triggered checkpoint 7918 | -4/Garrison | Triggered checkpoint 7934 | -4/Garrison | Discovered new exit (range 12) 7938 | -4/Garrison | Entered Research 7938 | -3/Research | Evolved 2 slots: Utility x2 7944 | -3/Research | Found Prototype Device 7946 | -3/Research | Found Prototype Device 7994 | -3/Research | Garrison activated, responded to threat 8040 | -3/Research | Identified Exp. Focal Shield (x2) 8413 | -3/Research | Discovered new exit (range 14) 8441 | -3/Research | Entered Testing 8586 | -3/Testing | Spotted Alpha 7 8657 | -3/Testing | Spotted Striker 8660 | -3/Testing | Spotted Striker 8665 | -3/Testing | Core integrity fell below 50% 8667 | -3/Testing | Scanned by Researcher 8667 | -3/Testing | Spotted Alpha 7 8672 | -3/Testing | Stole the SGEMP Prototype 8685 | -3/Testing | Core integrity fell below 20% 8688 | -3/Testing | Destroyed by P-80 Master with Gamma Rifle Last Messages --------------- 08679_ P-80 Master repels hacking attempt. 08681_ Critical hit. 08681_ Remote Datajack destroyed. 08682_ Slammed into Striker. 08683_ Weight Redist. System permanently disabled. 08683_ Destabilizing: Short circuit. 08683_ Penetrated by Slug. 08683_ Slug penetrates Reinforced Barrier. 08683_ Inertial Stasis Machine destroyed. 08684_ Slammed into Alpha 7. 08685_ C-55 Analyst calls for reinforcements. 08685_ ALERT: Hostile activity reported, dispatching reinforcements to area. 08685_ Held in stasis. 08685_ C-55 Analyst is analyzing... 08685_ Relay Coupler [NC] destroyed. 08686_ Penetrated by Slug. 08686_ Slug penetrates C-55 Analyst. 08688_ 2N-1CE's Frost Array destroyed. [Achievement: Achiever] Map ----- +----------------------------------------------------+ | ??????" + #?? ??????######## | | ??????" # # ! ????#= # | | ??????" " # # = #???# # | | ??????#"""?# # #???# + | | ??????####?# # #???# ] # | | ???????????# # #???# # | | ???????????# # #???# ?# | | ??######???# # ! #???######?# | | ??# ! ??# ###########??????????# | | ??# ??# #????????????#######?# | | ??# ]] ! ?# #????????????#"""""#?# | | ??# ] ?# #???????????##""T""### | | ??# # u#???????????# =# | | ??# """ # u#???????????# """ # | | ??# """ + #???????????# """ !# | | ??# """ # #???????????# """ # | | ??# # #???????????# # | | ??########?# #???????????# + | | ??????????## #???????????# ! !! # | | ??????????# gg##??????????# ! # | | ??????????# #??????????# ! + | | ??????????## g##??????????########## | | ???????#####//####???????????????? | | ???????#""" p #?????????????? [ | | ???????#"""cp #?????????????# | | ???????#""K@ ##?????????????# ] | | ???????# 7Kc "#??????????????# " | | ???????# """" "#??????????????# " | | ???????#""""""""#??????????????# " | | ???????##########??????????????# | | ???????????????????????????????##### | | ???????????????????????????????????? | | ???????????????????????????????????? | | ???????????????????????????????????? | | ???????????????????????????????????? | | ???????????????????????????????????? | | ???????????????????????????????????? | | ???????????????????????????????????? | | | | | | | | | | | | | | | | | | | | | | | | | +----------------------------------------------------+ Best States ------------- Heat Dissipation 146 Energy Generation 31 Energy Capacity 380 Matter Stores 300 Matter Capacity 300 Sight Range 22 Robot Scan Range 13 Terrain Scan Density 10 Additional Mass Support 21 Armor Coverage 375 Resistance: KI 30 Resistance: EM 20 Weapon Cycling 15 Evasion (%) 64 Recoil Reduction 3 Matter Filtering 30 Defensive Hacking 10 Relay Coupler Types 196 Relay Coupler Value 5 Item Schematics ----------------- None Robot Schematics ------------------ None Fabricated ------------ Nothing Alien Tech Used ----------------- None Achievements -------------- Achiever Assimilation Complete Cya! Challenges ------------ None Game ------ Seed RecoilAdvancedCannon Manual? 0 Play Time 01:40:55 Cumulative 25.6 hours Start 2021.06.26 @ 11:33:31 End 2021.06.26 @ 18:46:51 Sessions 3 Manual Loads 0 Difficulty Rogue Special Mode None Game No. 28 Rogue 28 Adventurer 0 Explorer 0 Win Type - Total 0 Types 0/0/0/0/0/0/0/0/0 Lore% 17 Gallery% 42 Achievement% 25 Wizard Run 0 Options --------- ASCII 1 Keyboard 0 Movement Mouse Keybinds 0 Fullscreen 2 Font 18/X11 Map View 76x50 Tactical HUD 1 Map Filters NONE Filters NONE Steam 1 RUN: 7a92384e-633b-455b-99e0-e87520f8dbd1